Cogmind - Beta 15 @@@ ROGUE MODE // 2025.06.12 @ 13:33:21 Player: Storm Mk9 Result: Destroyed by L-31 Rogue with Katana Performance ------------- Evolutions (0) 0 Regions Visited (4) 800 Robots Destroyed (10) 50 Value Destroyed (303) 303 Prototype IDs (23) 460 Alien Tech Used (0) 0 Bonus (300) 300 TOTAL SCORE: 1913 Bonus ------- Aligned with FarCom 300 Cogmind --------- Core Integrity 0/250 Matter 280/300 Energy 98/250 System Corruption 0% Temperature Cool (61) Movement Walking (120) Location -9/Mines Parts ------- > --- POWER (1) -------- Ion Engine > --- PROPULSION (2) --- Improved Aluminum Leg Improved Aluminum Leg > --- UTILITY (2) ------ Small Storage Unit Weapon Shielding > --- WEAPON (2) ------- Medium Laser Light Assault Rifle > --- INVENTORY (8) ---- Improved Aluminum Leg Seismic Detector XL Autogun Array Plasma Cutter Peak State ------------ > --- POWER ------------ Light Nuclear Core > --- PROPULSION ------- Improved Aluminum Leg Improved Aluminum Leg > --- UTILITY ---------- Small Storage Unit Seismic Detector > --- WEAPON ----------- Medium Laser Light Assault Rifle > --- INVENTORY -------- Ion Engine Improved Aluminum Leg Weapon Shielding XL Autogun Array Plasma Cutter [Rating: 15] Favorites ----------- Power Light Nuclear Core Engine Light Ion Engine Power Core Light Nuclear Core Propulsion Improved Aluminum Leg Leg Improved Aluminum Leg Utility Small Storage Unit Device Seismic Detector Storage Small Storage Unit Protection Weapon Shielding Weapon Medium Laser Energy Gun Medium Laser Ballistic Gun Light Assault Rifle Build | -11 -10 -10 -10 -9 ------- Run | Yrd Mat Min Exi Min Slots Evolved . | . . . . . Power . | . . . . . Propulsion . | . . . . . Utility . | . . . . . Weapon . | . . . . . Parts Attached 13 | 6 5 1 . 1 Power 3 | 1 1 . . 1 Engine 2 | 1 . . . 1 Core 1 | . 1 . . . Reactor . | . . . . . Propulsion 5 | 2 2 1 . . Treads . | . . . . . Leg 5 | 2 2 1 . . Wheel . | . . . . . Hover . | . . . . . Flight . | . . . . . Utility 3 | 1 2 . . . Device 1 | . 1 . . . Storage 1 | 1 . . . . Processor . | . . . . . Hackware . | . . . . . Protection 1 | . 1 . . . Artifact . | . . . . . Weapon 2 | 2 . . . . Energy Gun 1 | 1 . . . . Energy Cannon . | . . . . . Ballistic Gun 1 | 1 . . . . Ballistic Cannon . | . . . . . Launcher . | . . . . . Special Weapon . | . . . . . Impact Weapon . | . . . . . Slashing Weapon . | . . . . . Piercing Weapon . | . . . . . Special Melee Weapon . | . . . . . Unidentified Prototypes . | . . . . . Parts Lost 2 | . . 1 . 1 Power 1 | . . . . 1 Propulsion 1 | . . 1 . . Utility . | . . . . . Weapon . | . . . . . Highest Loss Streak 1 | . . 1 . 1 To Critical Strikes . | . . . . . Average Backups 6 | 2 7 7 6 4 Power . | . 1 1 1 . Propulsion 2 | . 2 2 1 1 Utility 1 | . 1 2 1 1 Weapon 1 | 1 1 1 1 1 Tool/Special . | . . . . . Unused Backups 6 | . 1 . 2 3 Power 1 | . 1 . . . Propulsion 1 | . . . . 1 Utility 1 | . . . 1 . Weapon 2 | . . . 1 1 Tool/Special 1 | . . . . 1 Average Slot Usage (%) 99 | . 100 98 100 95 Engine 3 | . 7 . . . Core 10 | . 6 14 14 9 Leg 27 | . 28 26 28 28 Device 11 | . 9 14 14 4 Storage 14 | . 14 14 14 14 Protection 2 | . 4 . . 9 Energy Gun 14 | . 14 14 14 14 Ballistic Gun 14 | . 14 14 14 14 Peak Build Rating 15 | 6 12 12 15 15 Average Rating 11 | 4 10 11 12 14 On Entrance 8 | . 6 12 11 15 Naked Turns . | . . . . . Heaviest Build 14 | 11 14 14 14 14 Greatest Support 26 | 20 26 26 26 26 Greatest Overweight (x) 1 | . . 1 . . Average Overweight (x) . | . . . . . Largest Inventory Capacity 8 | 8 8 8 8 8 Average Capacity 7 | 7 8 8 8 8 Most Carried 8 | 5 8 8 8 8 Average Carried 7 | 2 7 7 7 7 Final Capacity 8 | 8 8 8 8 8 Final Carried 8 | 3 8 7 8 7 Class Distribution -------------------- 100% | Mutant Dominant Class ---------------- Mutant | -10/Materials Mutant | -10/Mines Mutant | -10/Exiles Mutant | -9/Mines Resources | -11 -10 -10 -10 -9 ----------- Run | Yrd Mat Min Exi Min Matter Collected 362 | 161 184 17 . . Remotely . | . . . . . Salvage Created 321 | 17 213 91 . . Parts 30 | 6 21 3 . . Haulers Intercepted . | . . . . . Recyclers Shooed . | . . . . . Parts Field Recycled . | . . . . . Retrieved Matter . | . . . . . Parts Self-Destructed . | . . . . . Prevented . | . . . . . Kills | -11 -10 -10 -10 -9 ------- Run | Yrd Mat Min Exi Min Combat Hostiles Destroyed 7 | . 5 2 . . Guns 7 | . 5 2 . . Classes Destroyed 3 | 1 2 . . . Tunneler 1 | 1 . . . . Watcher 2 | . 2 . . . Grunt 7 | . 5 2 . . Best Kill Streak 4 | 1 4 1 . . Combat Bots Only 4 | . 4 1 . . Max Kills in Single Turn 1 | 1 1 1 . . Gunslinging . | . . . . . Exploded . | . . . . . Melee . | . . . . . Uniques/NPCs Destroyed . | . . . . . Combat | -11 -10 -10 -10 -9 -------- Run | Yrd Mat Min Exi Min Hostile Shots Fired 50 | . 26 12 . 12 Missed 7 | . 4 1 . 2 Hits 43 | . 22 11 . 10 Melee 5 | . . . . 5 Projectile 38 | . 22 11 . 5 Critical Strikes 2 | . . 1 . 1 Damage Taken 635 | . 254 163 . 218 Core 265 | . 92 60 . 113 Absorbed by Shields . | . . . . . Redirected to Shielding 29 | . 13 . . 16 Core Remaining (%) 100 | 100 . . . . Volleys Fired 42 | 2 25 10 . 5 Largest 2 | 2 2 2 . 2 Hottest 70 | 70 70 70 . 70 Shots Fired 78 | 4 44 20 . 10 Gun 78 | 4 44 20 . 10 Cannon . | . . . . . Launcher . | . . . . . Special . | . . . . . Kinetic 42 | 2 25 10 . 5 Thermal 36 | 2 19 10 . 5 Explosive . | . . . . . Electromagnetic . | . . . . . Robot Hit Streak 17 | 1 17 6 . 9 Robot Miss Streak 2 | 1 2 1 . 1 Penetration Max . | . . . . . Secondary Targets . | . . . . . Shots Hit Robots 57 | 2 31 15 . 9 Core Hits 24 | 2 14 5 . 3 Critical Kills 1 | . 1 . . . Critical Parts Destroyed . | . . . . . Critical Strikes 3 | . 1 2 . . Burn 2 | . . 2 . . Destroy 1 | . 1 . . . Melee Attacks . | . . . . . Impact . | . . . . . Slashing . | . . . . . Piercing . | . . . . . Sneak Attacks . | . . . . . Combat Hostiles . | . . . . . Follow-up Attacks . | . . . . . Damage Inflicted 564 | 14 313 147 . 90 Guns 564 | 14 313 147 . 90 Cannons . | . . . . . Explosions . | . . . . . Melee . | . . . . . Ramming . | . . . . . Kinetic 229 | 14 116 59 . 40 Thermal 335 | . 197 88 . 50 Explosive . | . . . . . Electromagnetic . | . . . . . Impact . | . . . . . Slashing . | . . . . . Piercing . | . . . . . Highest Corruption . | . . . . . Average Corruption . | . . . . . Corruption Purged . | . . . . . Corruption Blocked . | . . . . . Overload Shots . | . . . . . Overflow Damage . | . . . . . Projectiles . | . . . . . Explosions . | . . . . . Melee . | . . . . . Knockbacks . | . . . . . Impact . | . . . . . Kinetic . | . . . . . Secondary . | . . . . . Self-Inflicted Damage . | . . . . . Shots . | . . . . . Rammed . | . . . . . Targets Rammed . | . . . . . Kicked . | . . . . . Crushed . | . . . . . Highest Temperature 261 | 40 261 247 . 78 Average Temperature 99 | 20 113 103 . 49 Received Heat Transfer 282 | . 141 111 . 30 Effects 1 | . 1 . . . Interference 1 | . 1 . . . Siege Activations . | . . . . . Martial Activations . | . . . . . Shielding Activations . | . . . . . Robots Disrupted . | . . . . . Combat Hostiles . | . . . . . Robots Corrupted . | . . . . . Combat Hostiles . | . . . . . Parts Fried . | . . . . . Impact Corruptions . | . . . . . Robots Melted . | . . . . . Combat Hostiles . | . . . . . Parts Melted 1 | . . 1 . . Heat Transferred 1147 | . 592 407 . 148 Parts Sabotaged . | . . . . . Parts Stolen . | . . . . . Parts Stripped . | . . . . . Power Chain Reactions . | . . . . . Alert | -11 -10 -10 -10 -9 ------- Run | Yrd Mat Min Exi Min Maximum Alert Level . | . . . . . Low Security (%) 100 | 100 100 100 . 100 Level 1 . | . . . . . Level 2 . | . . . . . Level 3 . | . . . . . Level 4 . | . . . . . Level 5 . | . . . . . High Security . | . . . . . Max Security . | . . . . . Peak Influence 125 | . 125 30 . . Initial 2 | . . 2 . . Average 24 | . 36 4 . . Influence Increases 238 | 5 183 50 . . Destroy 0b10 Robot/C 140 | . 100 40 . . Destroy 0b10 Robot/NC 15 | 5 10 . . . Destroy Leader 34 | . 24 10 . . Successful Hack 4 | . 4 . . . Lose Combat Pursuer 45 | . 45 . . . Influence Decreases 238 | 5 176 57 . . Entered New Map 5 | . . 5 . . Time Decay 223 | 5 176 42 . . Lost Part 10 | . . 10 . . Squads Dispatched 1 | . 1 . . . Investigation 1 | . 1 . . . Extermination . | . . . . . Reinforcement . | . . . . . Assault . | . . . . . Garrison . | . . . . . Intercept . | . . . . . Searches Triggered . | . . . . . Construction Impeded . | . . . . . Haulers Reinforced . | . . . . . Active Scanning Responses . | . . . . . Cargo Convoy Interrupts . | . . . . . Stealth | -11 -10 -10 -10 -9 --------- Run | Yrd Mat Min Exi Min Distress Signals . | . . . . . Communications Jammed . | . . . . . Distress Signals . | . . . . . Times Spotted 14 | . 10 2 . 2 Peak Tracking Total 4 | . 4 2 . 2 Tactical Retreats 2 | . 2 . . . Traps | -11 -10 -10 -10 -9 ------- Run | Yrd Mat Min Exi Min Traps Triggered 1 | . 1 . . . Indirectly . | . . . . . Trap Hack Attempts . | . . . . . Triggered . | . . . . . Disarmed . | . . . . . Reprogrammed . | . . . . . Reused . | . . . . . Traps Extracted . | . . . . . Installed . | . . . . . Triggered . | . . . . . Machines | -11 -10 -10 -10 -9 ---------- Run | Yrd Mat Min Exi Min Machines Disabled . | . . . . . Max in Single Turn . | . . . . . Machines Repaired . | . . . . . Machines Dismantled . | . . . . . Machines Sabotaged . | . . . . . Overloaded Fab Kills . | . . . . . Hacking | -11 -10 -10 -10 -9 --------- Run | Yrd Mat Min Exi Min Machines Accessed 5 | . 4 . 1 . Terminals 3 | . 3 . . . Fabricators . | . . . . . Repair Stations . | . . . . . Recycling Units 1 | . 1 . . . Scanalyzers . | . . . . . Garrison Access . | . . . . . Total Hacks 13 | . 12 . 1 . Successful 7 | . 6 . 1 . Failed 6 | . 6 . . . Catastrophic 1 | . 1 . . . Database Lockouts . | . . . . . Manual 12 | . 11 . 1 . Terminals 11 | . 11 . . . Fabricators . | . . . . . Repair Stations . | . . . . . Recycling Units 1 | . 1 . . . Scanalyzers . | . . . . . Garrison Access . | . . . . . Terminal Hacks 1 | . . . 1 . Proto ID Catalog 1 | . . . 1 . Fabricator Hacks . | . . . . . Repair Station Hacks . | . . . . . Recycling Unit Hacks 1 | . 1 . . . Retrieve Components 1 | . 1 . . . Scanalyzer . | . . . . . Garrison Access Hacks . | . . . . . Unauthorized Hacks 5 | . 5 . . . Terminals 5 | . 5 . . . Track 3 | . 3 . . . Botnet 2 | . 2 . . . Fabricators . | . . . . . Repair Stations . | . . . . . Recycling Units . | . . . . . Scanalyzers . | . . . . . Garrison Access . | . . . . . Data Cores Recovered . | . . . . . Used . | . . . . . Hacking Detections 4 | . 4 . . . Full Trace Events . | . . . . . Feedback Events . | . . . . . Feedback Blocked . | . . . . . Robot Schematics Acquired . | . . . . . Robots Built . | . . . . . Authchips . | . . . . . Time . | . . . . . Total Robot Build Rating . | . . . . . Part Schematics Acquired . | . . . . . Parts Built . | . . . . . Authchips . | . . . . . Time . | . . . . . Total Part Build Rating . | . . . . . Parts Repaired . | . . . . . Time . | . . . . . Parts Recycled . | . . . . . Recycled Matter . | . . . . . Retrieved Matter . | . . . . . Retrieved Components 1 | . 1 . . . Parts Scanalyzed . | . . . . . Part Schematics Acquired . | . . . . . Parts Damaged . | . . . . . Bothacking | -11 -10 -10 -10 -9 ------------ Run | Yrd Mat Min Exi Min Used RIF Installer . | . . . . . Robots Hacked . | . . . . . Non-combat . | . . . . . Combat . | . . . . . Robot Hacks Applied . | . . . . . Relay Couplers Released . | . . . . . Fabnet Peak Effective % . | . . . . . Robots Rewired . | . . . . . Allies Hacked . | . . . . . Hacks Repelled . | . . . . . Allies | -11 -10 -10 -10 -9 -------- Run | Yrd Mat Min Exi Min Total Allies . | . . . . . Largest Group . | . . . . . Highest-Rated Group . | . . . . . Highest-Rated Ally . | . . . . . Total Orders . | . . . . . Ally Attacks . | . . . . . Total Damage . | . . . . . Kills . | . . . . . Allies Corrupted . | . . . . . Allies Melted . | . . . . . Intel | -11 -10 -10 -10 -9 ------- Run | Yrd Mat Min Exi Min Active Infowar (turns) 921 | . 408 248 263 2 Seismic 921 | . 408 248 263 2 Robot Analysis Total . | . . . . . Derelict Logs Recovered . | . . . . . Drone Launches . | . . . . . Drone Recoveries . | . . . . . Exploration | -11 -10 -10 -10 -9 ------------- Run | Yrd Mat Min Exi Min Turns Passed 1223 | 71 623 248 263 18 Spaces Moved 652 | 46 281 105 218 2 Core 6 | 6 . . . . Treads . | . . . . . Legs 646 | 40 281 105 218 2 Wheels . | . . . . . Hover . | . . . . . Flight . | . . . . . Fastest Speed 50 | 50 120 120 120 120 Average Speed 119 | 110 120 121 120 120 Slowest Speed 190 | 120 120 190 120 120 Overloaded Moves . | . . . . . Propulsion Burnouts . | . . . . . Robots Hopped . | . . . . . Potential Cave-ins . | . . . . . Cave-ins Triggered . | . . . . . Exploration Rate (%) 28 | 4 53 21 62 4 Regions Visited 4 Branch Regions 3 Pre-discovered Areas . | . . . . . Known Exits Taken . | . . . . . Unknown Exits Taken 4 | 1 1 1 1 . Scrap Searched . | . . . . . Spaces Dug . | . . . . . Terrain Destroyed . | . . . . . Melee . | . . . . . Projectile . | . . . . . AOE . | . . . . . Terrain Rammed . | . . . . . Walls Destroyed . | . . . . . Machines Disabled . | . . . . . Actions | -11 -10 -10 -10 -9 --------- Run | Yrd Mat Min Exi Min Total 1027 | 62 527 207 221 10 Wait 298 | . 205 92 . 1 Move 648 | 45 280 104 217 2 Hop . | . . . . . Pick Up 18 | 9 8 . 1 . Fast Attach . | . . . . . Attach 9 | 6 1 1 . 1 Detach . | . . . . . Swap 6 | . 5 . . 1 Drop 6 | . 3 . 3 . Fire 42 | 2 25 10 . 5 Melee . | . . . . . Ram . | . . . . . Kick . | . . . . . Crush . | . . . . . Escape Stasis . | . . . . . Rewire . | . . . . . Trap . | . . . . . Miscellaneous . | . . . . . Route ------- -11/Scrapyard -10/Materials (discovered 2 exits: [*Mat] / [*Min]) -10/Mines (discovered 2 exits: [*Mat] / *Exi) -10/Exiles -9/Mines History --------- Turn | Location | Event 3 | -11/Scrapyard | Discovered new exit (range 15) 72 | -11/Scrapyard | Entered Materials 300 | -10/Materials | Build established: Mutant 519 | -10/Materials | Discovered new exit (range 8) 689 | -10/Materials | Discovered new exit (range 6) 695 | -10/Materials | Entered Mines 743 | -10/Mines | Discovered new exit (range 5) 848 | -10/Mines | Core integrity fell below 50% 937 | -10/Mines | Deemed a non-threat by the Exiles lab entrance 938 | -10/Mines | Discovered new exit (range 5) 943 | -10/Mines | Entered Exiles 977 | -10/Exiles | Met 8R-AWN 995 | -10/Exiles | Met EX-HEX 1033 | -10/Exiles | Met EX-BIN 1050 | -10/Exiles | Aligned with FarCom system 1051 | -10/Exiles | Given EX-Vault access code 1079 | -10/Exiles | Opened EX-Vault 1089 | -10/Exiles | Found XL Autogun Array 1114 | -10/Exiles | Warned to stay clear of 0b10 Research branches 1149 | -10/Exiles | Met EX-DEC 1191 | -10/Exiles | Discovered new exit (range 14) 1206 | -10/Exiles | Left Exiles lab with XL Autogun Array 1206 | -10/Exiles | Entered Mines 1217 | -9/Mines | Core integrity fell below 20% 1220 | -9/Mines | Met a Derelict bent on vengeance 1224 | -9/Mines | Destroyed by L-31 Rogue with Katana Last Messages --------------- EX-BIN: And don't even think about spreading that code around. We're gonna change it right after you leave. Most certainly not to something like 1234 which I did last time as a little joke and some thief managed to sneak in here and steal a few of HEX's prototypes. EX-DEC: Ah I see we have a visitor. One wrong move in here and I'll invert your atomic chain! 01151_ EX-DEC: "Oops, I hope HEX didn't hear that..." 01191_ EXIT=FOUND LOCATION=UNKNOWN GOAL=ESCAPE 01206_ Receiving FarCom transmissions... 01207_ C-30 ARC bursts open, deploying its payload. 01207_ L-31 Rogue unfolds itself. 01207_ G-34 Mercenary unfolds itself. 01219_ Lgt. Nuclear Core destroyed. Map ----- +----------------------------------------------------+ | | | | | | | ??????????????????????????????? | | ??????????????????????????????? | | ??????????????????????????????? | | ??????????????????????????????? | | ??????????????????????????????? | | ??????????????????????????????? | | ??????????????????????????????? | | ??????????????????????????????? | | ??????????????????????????????? | | ??????????????????????????????? | | ??????????????????????????????? | | ??????????????????????????????? | | ??????????????????????????????? | | ??????????????????????????????? | | ??????????????????????????????? | | ??????????????????????????????? | | ??????????????????????########? | | ??????????????????????# #? | | ??????????????????????# #? | | ??????????????????????# #? | | ??????????????????????# #? | | ??????????????????????# l #? | | ??????????????????????# @ #? | | ??????????????????????# g""" #? | | ??????????????????????# """ #? | | ??????????????????????# """ #? | | ??????????????????????# #? | | ??????????????????????# % #? | | ??????????????????????## ####? | | ???????????????????????# #???? | | ???????????????????????# #???? | | ??????????????????????? ????? | | ???????????????????????# ?????? | | ??????????????????????????????? | | ??????????????????????????????? | | ??????????????????????????????? | | ??????????????????????????????? | | ??????????????????????????????? | | ??????????????????????????????? | | ??????????????????????????????? | | ??????????????????????????????? | | ??????????????????????????????? | | ??????????????????????????????? | | ??????????????????????????????? | | ??????????????????????????????? | | ??????????????????????????????? | | ??????????????????????????????? | +----------------------------------------------------+ Best States ------------- Heat Dissipation 25 Energy Generation 14 Energy Capacity 160 Matter Stores 300 Matter Capacity 300 Sight Range 16 Terrain Scan Density 10 Weapon Shielding 33 Evasion (%) 55 Item Schematics ----------------- None Robot Schematics ------------------ None Fabricated ------------ Nothing Repaired ---------- Nothing Alien Tech Used ----------------- None Achievements -------------- None Challenges ------------ None Game ------ Seed DeepElectrostormRipteeth Manual? 0 Play Time 00:14:11 Cumulative 34.0 hours Start 2025.06.12 @ 12:44:27 End 2025.06.12 @ 13:33:21 Sessions 1 Manual Loads 0 Difficulty Rogue Special Mode None Game No. 24 Rogue 5 Adventurer 0 Explorer 19 Win Type - Total 0 Types 0/0/0/0/0/0/0/0/0/0 Lore% 34 Gallery% 27 Achievement% 67 Wizard Run 0 Options --------- Layout 1 ASCII 0 Keyboard 0 Movement Mouse Keybinds 0 Fullscreen 1 Font 16/SmallcapsGlow Map View 50x40 Zoom Use 0% Tactical HUD 1 Map Filters NONE Filters NONE Steam SD RUN: 6ab6a861-c372-4878-925b-2eb9046c9bfc